fUST/lending_fUST_20250624
["ID","MTS","AMOUNT","RATE_DAILY","PERIOD"]
[367217490,1750703462908,-642.74,0.00021306,2]
[367217491,1750703462917,-151.0,0.00021306,2]
[367217492,1750703462927,-460.0,0.00021306,2]
[367217493,1750703462936,-460.0,0.00021306,2]
[367217494,1750703462945,-460.0,0.00021306,2]
[367217495,1750703462955,-1271.09,0.00021306,2]
[367217496,1750703462965,-512.42,0.00021306,2]
[367217497,1750703462974,-1467.23,0.00021306,2]
[367217499,1750703462996,-716.87,0.00021306,2]
[367217501,1750703463007,-460.0,0.00021306,2]
[367217503,1750703463018,-460.0,0.00021306,2]
[367217505,1750703463029,-460.0,0.00021306,2]
[367217507,1750703463040,-460.0,0.00021306,2]
[367217508,1750703463051,-690.13,0.00021306,2]
[367217510,1750703463062,-877.03,0.00021306,2]
[367217512,1750703463073,-286.44120666,0.00021306,2]
[367217514,1750703463084,-460.0,0.00021306,2]
[367217517,1750703463095,-1277.4,0.00021306,2]
[367217518,1750703463104,-623.5,0.00021306,2]
[367217520,1750703463114,-151.0,0.00021307,2]
[367217523,1750703463125,-151.0,0.00021307,2]
[367217525,1750703463135,-2000.0,0.00021316,2]
[367217526,1750703463144,-2000.0,0.00021316,2]
[367217528,1750703463157,-500.0,0.00021316,2]
[367217531,1750703463168,-2000.0,0.00021316,2]
[367217533,1750703463178,-2000.0,0.00021316,2]
[367217535,1750703463189,-2048.18,0.00021463,2]
[367217537,1750703463199,-168.0,0.00021464,2]
[367217539,1750703463209,-380.113,0.0002148,2]
[367217541,1750703463219,-177.41321718,0.0002148,2]
[367217543,1750703463229,-460.0,0.00021499,2]
[367217545,1750703463239,-460.0,0.00021499,2]
[367217547,1750703463248,-460.0,0.00021499,2]
[367217549,1750703463258,-205.13825141,0.00021499,2]
[367217551,1750703463269,-871.02,0.00021499,2]
[367217553,1750703463279,-920.08,0.00021499,2]
[367217555,1750703463289,-526.97,0.00021499,2]
[367217557,1750703463299,-460.0,0.00021499,2]
[367217559,1750703463310,-534.38,0.00021499,2]
[367217561,1750703463322,-628.24,0.00021499,2]
[367217563,1750703463332,-460.0,0.00021499,2]
[367217565,1750703463341,-460.0,0.00021499,2]
[367217567,1750703463353,-905.88,0.00021499,2]
[367217569,1750703463364,-460.0,0.00021499,2]
[367217572,1750703463375,-772.66,0.00021499,2]
[367217574,1750703463384,-2830.87,0.00021499,2]
[367217576,1750703463394,-1001.22,0.00021499,2]
[367217578,1750703463407,-799.25,0.00021499,2]
[367217579,1750703463418,-582.13,0.00021499,2]
[367217581,1750703463427,-460.0,0.00021499,2]
[367217584,1750703463438,-460.0,0.00021499,2]
[367217586,1750703463448,-460.0,0.00021499,2]
[367217588,1750703463459,-526.06,0.00021499,2]
[367217590,1750703463468,-600.21671667,0.00021499,2]
[367217592,1750703463478,-594.18,0.00021499,2]
[367217594,1750703463487,-487.4,0.00021499,2]
[367217596,1750703463497,-349.67968111,0.00021499,2]
[367217598,1750703463509,-460.0,0.00021499,2]
[367217600,1750703463520,-703.84,0.00021499,2]
[367217602,1750703463530,-520.16,0.00021499,2]
[367217604,1750703463541,-684.63,0.00021499,2]
[367217606,1750703463550,-521.06,0.00021499,2]
[367217608,1750703463561,-460.0,0.00021499,2]
[367217610,1750703463571,-526.42,0.00021499,2]
[367217612,1750703463583,-634.9,0.00021499,2]
[367217614,1750703463593,-460.0,0.00021499,2]
[367217616,1750703463603,-151.0,0.00021499,2]
[367217618,1750703463616,-151.0,0.00021499,2]
[367217620,1750703463631,-509.18,0.00021499,2]
[367217622,1750703463642,-460.0,0.00021505,2]
[367217624,1750703463652,-460.0,0.00021505,2]
[367217626,1750703463666,-460.0,0.00021564,2]
[367217629,1750703463676,-460.0,0.00021564,2]
[367217631,1750703463687,-556.5,0.00021564,2]
[367217633,1750703463699,-4412.07,0.00021564,2]
[367217635,1750703463707,-460.0,0.00021564,2]
[367217637,1750703463716,-460.0,0.00021564,2]
[367217639,1750703463725,-631.6,0.00021564,2]
[367217641,1750703463735,-667.27,0.00021565,2]
[367217643,1750703463746,-639.47,0.00021565,2]
[367217645,1750703463756,-460.0,0.00021565,2]
[367217647,1750703463767,-460.0,0.00021565,2]
[367217649,1750703463778,-460.0,0.00021565,2]
[367217651,1750703463788,-460.0,0.00021565,2]
[367217653,1750703463799,-480.99,0.00021565,2]
[367217655,1750703463810,-460.0,0.00021565,2]
[367217657,1750703463820,-460.0,0.00021565,2]
[367217659,1750703463832,-622.89,0.00021565,2]
[367217661,1750703463843,-460.0,0.00021567,2]
[367217663,1750703463857,-470.43,0.00021567,2]
[367217665,1750703463870,-3501.91,0.00021567,2]
[367217668,1750703463882,-1308.43,0.00021567,2]
[367217670,1750703463892,-3786.48,0.00021567,2]
[367217672,1750703463905,-644.85,0.00021567,2]
[367217674,1750703463916,-475.73,0.00021567,2]
[367217676,1750703463927,-2953.84,0.00021567,2]
[367217678,1750703463937,-460.0,0.00021567,2]
[367217680,1750703463947,-4902.33,0.00021567,2]
[367217682,1750703463958,-2876.25,0.00021567,2]
[367217684,1750703463968,-929.63,0.00021567,2]
[367217686,1750703463978,-2897.54,0.00021567,2]
[367217688,1750703463988,-1956.8,0.00021567,2]
[367217690,1750703463999,-1537.3,0.00021567,2]
[367217692,1750703464010,-1874.56,0.00021567,2]
[367217694,1750703464020,-546.55,0.00021567,2]
[367217696,1750703464031,-1199.89,0.00021567,2]
[367217698,1750703464041,-460.0,0.00021567,2]
[367217701,1750703464051,-2098.2,0.00021567,2]
[367217703,1750703464060,-1800.75,0.00021567,2]
[367217705,1750703464070,-1500.0,0.00021568,2]
[367217707,1750703464080,-501.60625569,0.00021568,2]
[367217709,1750703464090,-460.0,0.00021572,2]
[367217711,1750703464100,-460.0,0.00021572,2]
[367217713,1750703464110,-460.0,0.00021574,2]
[367217715,1750703464120,-460.0,0.00021574,2]
[367217717,1750703464130,-460.0,0.00021574,2]
[367217718,1750703464141,-460.0,0.00021574,2]
[367217719,1750703464151,-460.0,0.00021574,2]
[367217721,1750703464162,-858.61,0.00021574,2]
[367217723,1750703464172,-592.61,0.00021574,2]
[367217725,1750703464181,-460.0,0.00021574,2]
[367217727,1750703464191,-460.0,0.00021574,2]
[367217729,1750703464202,-460.0,0.00021574,2]
[367217731,1750703464211,-460.0,0.00021574,2]
[367217733,1750703464222,-460.0,0.00021574,2]
[367217735,1750703464232,-460.0,0.00021574,2]
[367217737,1750703464242,-1801.36,0.00021574,2]
[367217739,1750703464252,-460.0,0.00021574,2]
[367217741,1750703464262,-460.0,0.00021574,2]
[367217743,1750703464273,-864.22,0.00021574,2]
[367217746,1750703464283,-516.15,0.00021574,2]
[367217747,1750703464293,-460.0,0.00021574,2]
[367217749,1750703464304,-1269.31,0.00021574,2]
[367217752,1750703464314,-460.0,0.00021574,2]
[367217754,1750703464325,-460.0,0.00021574,2]
[367217756,1750703464335,-460.0,0.00021574,2]
[367217758,1750703464345,-749.22,0.00021574,2]
[367217760,1750703464356,-531.63,0.00021574,2]
[367217762,1750703464365,-941.0,0.00021574,2]
[367217764,1750703464376,-2084.59,0.00021574,2]
[367217766,1750703464387,-845.73,0.00021574,2]
[367217768,1750703464398,-587.6,0.00021574,2]
[367217770,1750703464410,-849.75,0.00021574,2]
[367217772,1750703464421,-1354.64,0.00021574,2]
[367217774,1750703464431,-460.0,0.00021574,2]
[367217776,1750703464441,-2011.48,0.00021574,2]
[367217778,1750703464451,-661.55,0.00021574,2]
[367217780,1750703464461,-1372.38,0.00021574,2]
[367217782,1750703464471,-513.72,0.00021574,2]
[367217784,1750703464482,-497.41,0.00021574,2]
[367217786,1750703464492,-460.0,0.00021574,2]
[367217788,1750703464503,-460.0,0.00021574,2]
[367217790,1750703464513,-638.24,0.00021574,2]
[367217792,1750703464524,-151.0,0.00021574,2]
[367217794,1750703464534,-460.0,0.00021574,2]
[367217796,1750703464544,-460.0,0.00021574,2]
[367217798,1750703464554,-1216.93,0.00021574,2]
[367217800,1750703464565,-460.0,0.00021574,2]
[367217802,1750703464575,-608.18,0.00021574,2]
[367217805,1750703464586,-274.881892,0.00021574,2]
[367217807,1750703464596,-960.47,0.00021574,2]
[367217808,1750703464605,-274.881892,0.00021574,2]
[367217809,1750703464616,-1111.78,0.00021574,2]
[367217810,1750703464630,-2423.53,0.00021574,2]
[367217811,1750703464640,-1584.56,0.00021574,2]
[367217812,1750703464650,-460.0,0.00021574,2]
[367217813,1750703464662,-469.75,0.00021574,2]
[367217814,1750703464672,-460.0,0.00021575,2]
[367217815,1750703464682,-460.0,0.00021575,2]
[367217816,1750703464692,-460.0,0.00021575,2]
[367217817,1750703464704,-811.39,0.00021575,2]
[367217818,1750703464714,-1345.63,0.00021575,2]
[367217819,1750703464724,-2385.55,0.00021575,2]
[367217820,1750703464734,-2002.73,0.00021575,2]
[367217821,1750703464744,-1430.25,0.00021575,2]
[367217822,1750703464755,-460.0,0.00021576,2]
[367217823,1750703464765,-460.0,0.00021576,2]
[367217824,1750703464775,-460.0,0.00021576,2]
[367217825,1750703464784,-460.0,0.00021576,2]
[367217826,1750703464795,-460.0,0.00021576,2]
[367217827,1750703464805,-460.0,0.00021576,2]
[367217828,1750703464815,-1077.83,0.00021576,2]
[367217829,1750703464826,-461.96,0.00021576,2]
[367217830,1750703464836,-460.0,0.00021576,2]
[367217831,1750703464846,-460.0,0.00021576,2]
[367217832,1750703464856,-460.0,0.00021576,2]
[367217833,1750703464866,-460.0,0.00021576,2]
[367217834,1750703464876,-460.0,0.00021576,2]
[367217835,1750703464886,-460.0,0.00021576,2]
[367217836,1750703464896,-460.0,0.00021576,2]
[367217837,1750703464906,-460.0,0.00021576,2]
[367217838,1750703464917,-460.0,0.00021576,2]
[367217839,1750703464927,-460.0,0.00021576,2]
[367217840,1750703464938,-482.91,0.00021576,2]
[367217841,1750703464948,-6062.65,0.00021576,2]
[367217842,1750703464959,-1604.4,0.00021576,2]
[367217843,1750703464969,-1122.73,0.00021576,2]
[367217844,1750703464980,-4216.8,0.00021576,2]
[367217845,1750703464990,-602.77,0.00021576,2]
[367217846,1750703465001,-460.0,0.00021578,2]
[367217847,1750703465011,-1729.75,0.00021578,2]
[367217848,1750703465022,-460.0,0.00021578,2]
[367217849,1750703465032,-460.0,0.00021578,2]
[367217850,1750703465043,-826.58,0.00021578,2]
[367217851,1750703465053,-804.48,0.00021578,2]
[367217852,1750703465063,-4875.79,0.00021578,2]
[367217853,1750703465074,-496.76,0.00021578,2]
[367217854,1750703465084,-3258.78,0.00021578,2]
[367217855,1750703465095,-3537.82,0.00021578,2]
[367217856,1750703465105,-151.0,0.00021578,2]
[367217857,1750703465115,-460.0,0.00021578,2]
[367217858,1750703465126,-2836.83,0.00021578,2]
[367217859,1750703465136,-6523.17,0.00021578,2]
[367217860,1750703465147,-570.76,0.00021578,2]
[367217861,1750703465157,-5939.12,0.00021578,2]
[367217862,1750703465167,-531.47,0.00021578,2]
[367217863,1750703465177,-544.6,0.0002158,2]
[367217864,1750703465187,-928.46,0.0002158,2]
[367217865,1750703465198,-460.0,0.0002158,2]
[367217866,1750703465208,-460.0,0.0002158,2]
[367217867,1750703465218,-901.64,0.0002158,2]
[367217868,1750703465228,-2030.49,0.0002158,2]
[367217869,1750703465238,-460.0,0.0002158,2]
[367217870,1750703465247,-460.0,0.0002158,2]
[367217871,1750703465258,-860.5,0.0002158,2]
[367217872,1750703465268,-643.29,0.0002158,2]
[367217873,1750703465278,-460.0,0.0002158,2]
[367217874,1750703465288,-491.76,0.0002158,2]
[367217875,1750703465298,-500.0,0.0002158,2]
[367217876,1750703465308,-1423.71,0.0002158,2]
[367217877,1750703465318,-642.74,0.0002158,2]
[367217878,1750703465329,-460.0,0.0002158,2]
[367217879,1750703465339,-460.0,0.0002158,2]
[367217880,1750703465349,-460.0,0.0002158,2]
[367217881,1750703465359,-151.0,0.0002158,2]
[367217882,1750703465370,-439.027388,0.0002158,2]
[367217883,1750703465380,-439.027388,0.0002158,2]
[367217884,1750703465390,-1271.09,0.0002158,2]
[367217886,1750703465399,-512.42,0.0002158,2]
[367217888,1750703465410,-151.0,0.0002158,2]
[367217890,1750703465420,-1467.23,0.0002158,2]
[367217892,1750703465432,-716.87,0.0002158,2]
[367217894,1750703465441,-460.0,0.0002158,2]
[367217896,1750703465451,-151.0,0.0002158,2]
[367217898,1750703465461,-460.0,0.0002158,2]
[367217900,1750703465471,-190.818485,0.0002158,2]
[367217902,1750703465480,-190.818485,0.0002158,2]
[367217904,1750703465490,-460.0,0.0002158,2]
[367217906,1750703465500,-460.0,0.0002158,2]
[367217908,1750703465510,-690.13,0.0002158,2]
[367217910,1750703465520,-877.03,0.0002158,2]
[367217912,1750703465530,-460.0,0.0002158,2]
[367217914,1750703465540,-1277.4,0.0002158,2]
[367217916,1750703465550,-623.5,0.0002158,2]
[367217918,1750703465559,-773.0,0.0002162,2]
[367217920,1750703465570,-302.80168183,0.00021643,9]
[367217922,1750703465579,-1500.0,0.00021737,2]
[367217924,1750703465590,-1500.0,0.00021737,2]
[367217926,1750703465600,-500.83696696,0.00021737,2]
[367217928,1750703465610,-266.35310527,0.00021742,2]
[367217930,1750703465622,-1800.0,0.00021742,2]
[367217933,1750703465634,-168.0,0.00021748,2]
[367217935,1750703465645,-168.0,0.00021761,2]
[367217937,1750703465655,-460.0,0.00021773,2]
[367217939,1750703465667,-460.0,0.00021773,2]
[367217941,1750703465677,-460.0,0.00021773,2]
[367217943,1750703465688,-871.02,0.00021773,2]
[367217945,1750703465699,-920.08,0.00021773,2]
[367217947,1750703465709,-526.97,0.00021773,2]
[367217949,1750703465719,-292.701882,0.00021773,2]
[367217951,1750703465730,-292.701882,0.00021773,2]
[367217953,1750703465741,-460.0,0.00021773,2]
[367217955,1750703465751,-534.38,0.00021773,2]
[367217957,1750703465762,-628.24,0.00021773,2]
[367217959,1750703465772,-460.0,0.00021773,2]
[367217961,1750703465783,-460.0,0.00021773,2]
[367217963,1750703465793,-905.88,0.00021773,2]
[367217965,1750703465803,-460.0,0.00021773,2]
[367217967,1750703465814,-772.66,0.00021773,2]
[367217969,1750703465825,-2830.87,0.00021773,2]
[367217982,1750703465992,-1001.22,0.00021773,2]
[367217983,1750703466003,-799.25,0.00021773,2]
[367217984,1750703466014,-582.13,0.00021773,2]
[367217985,1750703466022,-460.0,0.00021773,2]
[367217986,1750703466032,-460.0,0.00021773,2]
[367217988,1750703466042,-460.0,0.00021773,2]
[367217990,1750703466052,-526.06,0.00021773,2]
[367217992,1750703466062,-594.18,0.00021773,2]
[367217994,1750703466071,-487.4,0.00021773,2]
[367217996,1750703466081,-460.0,0.00021773,2]
[367217998,1750703466091,-703.84,0.00021773,2]
[367218000,1750703466099,-520.16,0.00021773,2]
[367218002,1750703466109,-684.63,0.00021773,2]
[367218004,1750703466119,-521.06,0.00021773,2]
[367218006,1750703466131,-460.0,0.00021773,2]
[367218008,1750703466140,-526.42,0.00021773,2]
[367218010,1750703466150,-634.9,0.00021773,2]
[367218012,1750703466161,-460.0,0.00021773,2]
[367218014,1750703466169,-509.18,0.00021773,2]
[367218016,1750703466179,-460.0,0.00021779,2]
[367218018,1750703466189,-460.0,0.00021779,2]
[367218020,1750703466198,-168.0,0.00021813,2]
[367218022,1750703466207,-168.0,0.00021834,2]
[367218024,1750703466216,-460.0,0.00021838,2]
[367218026,1750703466226,-460.0,0.00021838,2]
[367218028,1750703466236,-556.5,0.00021838,2]
[367218030,1750703466246,-4412.07,0.00021838,2]
[367218032,1750703466255,-513.54421347,0.00021838,2]
[367218034,1750703466264,-460.0,0.00021838,2]
[367218035,1750703466274,-631.6,0.00021838,2]
[367218037,1750703466283,-667.27,0.00021839,2]
[367218039,1750703466292,-639.47,0.00021839,2]
[367218041,1750703466302,-460.0,0.00021839,2]
[367218043,1750703466312,-460.0,0.00021839,2]
[367218045,1750703466322,-460.0,0.00021839,2]
[367218047,1750703466331,-460.0,0.00021839,2]
[367218049,1750703466342,-480.99,0.00021839,2]
[367218051,1750703466352,-460.0,0.00021839,2]
[367218053,1750703466362,-460.0,0.00021839,2]
[367218055,1750703466371,-622.89,0.00021839,2]
[367218057,1750703466380,-460.0,0.00021841,2]
[367218059,1750703466389,-470.43,0.00021841,2]
[367218061,1750703466398,-3501.91,0.00021841,2]
[367218063,1750703466408,-1308.43,0.00021841,2]
[367218065,1750703466417,-3786.48,0.00021841,2]
[367218067,1750703466427,-644.85,0.00021841,2]
[367218069,1750703466436,-475.73,0.00021841,2]
[367218071,1750703466446,-2953.84,0.00021841,2]
[367218073,1750703466458,-460.0,0.00021841,2]
[367218075,1750703466467,-4902.33,0.00021841,2]
[367218077,1750703466477,-2876.25,0.00021841,2]
[367218078,1750703466486,-929.63,0.00021841,2]
[367218080,1750703466495,-2897.54,0.00021841,2]
[367218082,1750703466504,-1956.8,0.00021841,2]
[367218084,1750703466514,-1537.3,0.00021841,2]
[367218086,1750703466523,-1874.56,0.00021841,2]
[367218088,1750703466533,-546.55,0.00021841,2]
[367218090,1750703466542,-1199.89,0.00021841,2]
[367218092,1750703466552,-460.0,0.00021841,2]
[367218094,1750703466561,-2098.2,0.00021841,2]
[367218095,1750703466571,-1800.75,0.00021841,2]
[367218096,1750703466580,-460.0,0.00021846,2]
[367218097,1750703466590,-460.0,0.00021846,2]
[367218098,1750703466599,-460.0,0.00021848,2]
[367218099,1750703466609,-460.0,0.00021848,2]
[367218100,1750703466620,-460.0,0.00021848,2]
[367218101,1750703466632,-460.0,0.00021848,2]
[367218102,1750703466641,-287.38416098,0.00021848,2]
[367218103,1750703466651,-858.61,0.00021848,2]
[367218104,1750703466662,-592.61,0.00021848,2]
[367218105,1750703466673,-592.28563871,0.00021848,2]
[367218106,1750703466682,-460.0,0.00021848,2]
[367218107,1750703466692,-460.0,0.00021848,2]
[367218108,1750703466702,-460.0,0.00021848,2]
[367218109,1750703466712,-460.0,0.00021848,2]
[367218110,1750703466722,-460.0,0.00021848,2]
[367218111,1750703466731,-1801.36,0.00021848,2]
[367218112,1750703466740,-460.0,0.00021848,2]
[367218113,1750703466750,-460.0,0.00021848,2]
[367218114,1750703466760,-864.22,0.00021848,2]
[367218115,1750703466771,-516.15,0.00021848,2]
[367218116,1750703466780,-460.0,0.00021848,2]
[367218117,1750703466791,-1269.31,0.00021848,2]
[367218118,1750703466800,-460.0,0.00021848,2]
[367218119,1750703466810,-460.0,0.00021848,2]
[367218120,1750703466820,-575.72188412,0.00021848,2]
[367218121,1750703466829,-749.22,0.00021848,2]
[367218122,1750703466838,-531.63,0.00021848,2]
[367218123,1750703466848,-941.0,0.00021848,2]
[367218124,1750703466858,-2084.59,0.00021848,2]
[367218125,1750703466867,-845.73,0.00021848,2]
[367218126,1750703466877,-587.6,0.00021848,2]
[367218127,1750703466886,-849.75,0.00021848,2]
[367218128,1750703466896,-460.0,0.00021848,2]
[367218129,1750703466906,-1354.64,0.00021848,2]
[367218130,1750703466917,-2011.48,0.00021848,2]
[367218131,1750703466927,-661.55,0.00021848,2]
[367218132,1750703466937,-1372.38,0.00021848,2]
[367218133,1750703466947,-513.72,0.00021848,2]
[367218134,1750703466956,-497.41,0.00021848,2]
[367218135,1750703466966,-460.0,0.00021848,2]
[367218136,1750703466977,-460.0,0.00021848,2]
[367218137,1750703466988,-638.24,0.00021848,2]
[367218138,1750703466998,-460.0,0.00021848,2]
[367218139,1750703467008,-460.0,0.00021848,2]
[367218140,1750703467018,-1216.93,0.00021848,2]
[367218141,1750703467028,-460.0,0.00021848,2]
[367218142,1750703467039,-608.18,0.00021848,2]
[367218143,1750703467049,-960.47,0.00021848,2]
[367218144,1750703467059,-1111.78,0.00021848,2]
[367218145,1750703467069,-2423.53,0.00021848,2]
[367218146,1750703467078,-1584.56,0.00021848,2]
[367218147,1750703467087,-460.0,0.00021848,2]
[367218148,1750703467097,-469.75,0.00021848,2]
[367218149,1750703467106,-460.0,0.00021849,2]
[367218150,1750703467116,-460.0,0.00021849,2]
[367218151,1750703467125,-460.0,0.00021849,2]
[367218152,1750703467135,-811.39,0.00021849,2]
[367218153,1750703467144,-1345.63,0.00021849,2]
[367218154,1750703467154,-2385.55,0.00021849,2]
[367218155,1750703467167,-2002.73,0.00021849,2]
[367218156,1750703467176,-1430.25,0.00021849,2]
[367218157,1750703467186,-460.0,0.0002185,2]
[367218158,1750703467195,-460.0,0.0002185,2]
[367218159,1750703467204,-460.0,0.0002185,2]
[367218160,1750703467214,-460.0,0.0002185,2]
[367218161,1750703467223,-605.98986955,0.0002185,2]
[367218162,1750703467233,-460.0,0.0002185,2]
[367218163,1750703467242,-1077.83,0.0002185,2]
[367218164,1750703467251,-461.96,0.0002185,2]
[367218165,1750703467261,-460.0,0.0002185,2]
[367218166,1750703467271,-460.0,0.0002185,2]
[367218167,1750703467280,-460.0,0.0002185,2]
[367218168,1750703467290,-460.0,0.0002185,2]
[367218169,1750703467300,-460.0,0.0002185,2]
[367218170,1750703467310,-460.0,0.0002185,2]
[367218171,1750703467319,-460.0,0.0002185,2]
[367218172,1750703467329,-460.0,0.0002185,2]
[367218173,1750703467339,-460.0,0.0002185,2]
[367218174,1750703467348,-460.0,0.0002185,2]
[367218175,1750703467357,-482.91,0.0002185,2]
[367218176,1750703467367,-6062.65,0.0002185,2]
[367218177,1750703467376,-1604.4,0.0002185,2]
[367218178,1750703467386,-1122.73,0.0002185,2]
[367218179,1750703467395,-4216.8,0.0002185,2]
[367218180,1750703467404,-602.77,0.0002185,2]
[367218181,1750703467416,-460.0,0.00021852,2]
[367218182,1750703467425,-151.0,0.00021852,2]
[367218183,1750703467435,-151.0,0.00021852,2]
[367218184,1750703467444,-1729.75,0.00021852,2]
[367218185,1750703467454,-460.0,0.00021852,2]
[367218186,1750703467464,-460.0,0.00021852,2]
[367218187,1750703467473,-826.58,0.00021852,2]
[367218188,1750703467483,-804.48,0.00021852,2]
[367218189,1750703467492,-4875.79,0.00021852,2]
[367218190,1750703467502,-496.76,0.00021852,2]
[367218191,1750703467512,-3258.78,0.00021852,2]
[367218192,1750703467522,-3537.82,0.00021852,2]
[367218193,1750703467531,-338.16728226,0.00021852,2]
[367218194,1750703467541,-2836.83,0.00021852,2]
[367218195,1750703467550,-6523.17,0.00021852,2]
[367218196,1750703467559,-570.76,0.00021852,2]
[367218197,1750703467569,-5939.12,0.00021852,2]
[367218198,1750703467579,-151.0,0.00021852,2]
[367218199,1750703467589,-296.024134,0.00021852,2]
[367218200,1750703467599,-531.47,0.00021852,2]
[367218201,1750703467608,-544.6,0.00021854,2]
[367218202,1750703467621,-928.46,0.00021854,2]
[367218203,1750703467631,-460.0,0.00021854,2]
[367218204,1750703467641,-460.0,0.00021854,2]
[367218205,1750703467650,-901.64,0.00021854,2]
[367218206,1750703467660,-2030.49,0.00021854,2]
[367218207,1750703467670,-151.0,0.00021854,2]
[367218208,1750703467679,-460.0,0.00021854,2]
[367218209,1750703467688,-460.0,0.00021854,2]
[367218210,1750703467698,-860.5,0.00021854,2]
[367218211,1750703467708,-643.29,0.00021854,2]
[367218212,1750703467718,-460.0,0.00021854,2]
[367218213,1750703467728,-491.76,0.00021854,2]
[367218214,1750703467738,-151.0,0.00021854,2]
[367218215,1750703467747,-500.0,0.00021854,2]
[367218216,1750703467756,-1423.71,0.00021854,2]
[367218217,1750703467766,-642.74,0.00021854,2]
[367218218,1750703467776,-460.0,0.00021854,2]
[367218219,1750703467787,-460.0,0.00021854,2]
[367218220,1750703467796,-460.0,0.00021854,2]
[367218221,1750703467806,-1271.09,0.00021854,2]
[367218222,1750703467816,-512.42,0.00021854,2]
[367218223,1750703467826,-1467.23,0.00021854,2]
[367218224,1750703467836,-716.87,0.00021854,2]
[367218225,1750703467845,-460.0,0.00021854,2]
[367218226,1750703467855,-460.0,0.00021854,2]
[367218227,1750703467865,-460.0,0.00021854,2]
[367218228,1750703467875,-460.0,0.00021854,2]
[367218229,1750703467885,-690.13,0.00021854,2]
[367218230,1750703467894,-877.03,0.00021854,2]
[367218231,1750703467904,-460.0,0.00021854,2]
[367218232,1750703467914,-1277.4,0.00021854,2]
[367218233,1750703467923,-623.5,0.00021854,2]
[367218234,1750703467933,-151.0,0.00021855,2]
[367218235,1750703467943,-2500.0,0.00021864,2]
[367218236,1750703467952,-2500.0,0.00021864,2]
[367218237,1750703467962,-500.0,0.00021864,2]
[367218238,1750703467973,-670.21376153,0.00021864,2]
[367218239,1750703467982,-68948.82,0.000219,2]
[367218240,1750703467993,-185.24448972,0.000219,2]
[367218241,1750703468003,-151.0,0.000219,2]
[367218242,1750703468013,-274.881892,0.000219,2]
[367218243,1750703468022,-274.881892,0.000219,2]
[367218244,1750703468033,-168.0,0.00021911,2]
[367218245,1750703468042,-500.0,0.00021917,2]
[367218246,1750703468052,-500.0,0.00021917,2]
[367218247,1750703468062,-500.0,0.00021917,2]
[367218248,1750703468072,-500.0,0.00021917,2]
[367218249,1750703468081,-500.0,0.00021917,2]
[367218250,1750703468091,-500.0,0.00021917,2]
[367218251,1750703468101,-500.0,0.00021917,2]
[367218252,1750703468110,-500.0,0.00021917,2]
[367218253,1750703468120,-500.0,0.00021917,2]
[367218254,1750703468129,-500.0,0.00021917,2]